Department family,Entity,Allocation Date,Expense type,Expense Area,Supplier,Transaction Number,Amount in Sterling
Government Equalities Office,Equality and Human Rights Commission,11/04/2012,Accommodation,Operating - Finance,Expotel,20130108,516.46
Government Equalities Office,Equality and Human Rights Commission,11/04/2012,Accommodation,Operating - Finance,Expotel,20130109,577.6
Government Equalities Office,Equality and Human Rights Commission,11/04/2012,Accommodation,Operating - Finance,Expotel,20130110,619.75
Government Equalities Office,Equality and Human Rights Commission,11/04/2012,Accommodation,Operating - Finance,Expotel,20130111,642.94
Government Equalities Office,Equality and Human Rights Commission,11/04/2012,Accommodation,Operating - Finance,Expotel,20130112,735.7
Government Equalities Office,Equality and Human Rights Commission,11/04/2012,Accommodation,Operating - Finance,Expotel,20130113,832.66
Government Equalities Office,Equality and Human Rights Commission,11/04/2012,Accommodation,Operating - Finance,Expotel,20130115,"1,619.97"
Government Equalities Office,Equality and Human Rights Commission,11/04/2012,Accommodation,Operating - Finance,Expotel,20130116,"1,764.82"
Government Equalities Office,Equality and Human Rights Commission,11/04/2012,Accommodation,Operating - Finance,Expotel,20130118,"3,514.04"
Government Equalities Office,Equality and Human Rights Commission,11/04/2012,Accommodation,Operating - Finance,Expotel,20130119,"3,898.43"
Government Equalities Office,Equality and Human Rights Commission,10/04/2012,Ad hoc 3rd Party Service,Operating - Scotland,Wayne Brown,iPOS Invoice 44829,669.83
Government Equalities Office,Equality and Human Rights Commission,11/04/2012,Ad hoc 3rd Party Service,Operating - Scotland,Wayne Brown,iPOS Invoice 44912,692.52
Government Equalities Office,Equality and Human Rights Commission,25/04/2012,Agency Staff,Policy & Ptnrship - Business Planning,Reed Employment,iPOS Invoice 45026,936
Government Equalities Office,Equality and Human Rights Commission,11/04/2012,Agency Staff,Operating - Finance,Hudson Global Resources Ltd,iPOS Invoice 44879,"2,138.94"
Government Equalities Office,Equality and Human Rights Commission,25/04/2012,Agency Staff,Policy & Ptnrship - Business Planning,Reed Employment,iPOS Invoice 45027,"2,184.00"
Government Equalities Office,Equality and Human Rights Commission,25/04/2012,Agency Staff,Policy & Ptnrship - Business Planning,Reed Employment,iPOS Invoice 45028,"2,496.00"
Government Equalities Office,Equality and Human Rights Commission,25/04/2012,Agency Staff,Change - Group Director,Veredus,iPOS Invoice 45097,"4,500.00"
Government Equalities Office,Equality and Human Rights Commission,11/04/2012,Agency Staff,Operating - Disability Programme,Penna,iPOS Invoice 44869,"9,477.00"
Government Equalities Office,Equality and Human Rights Commission,11/04/2012,Agency Staff,Policy & Ptnrship - Group Director,Veredus,iPOS Invoice 44889,"11,730.00"
Government Equalities Office,Equality and Human Rights Commission,17/04/2012,Agency Staff,Change - People,Digby Morgan Consulting Ltd,iPOS Invoice 43964,"14,902.08"
Government Equalities Office,Equality and Human Rights Commission,11/04/2012,Agency Staff,Change - Group Director,Veredus,iPOS Invoice 44799,"16,200.00"
Government Equalities Office,Equality and Human Rights Commission,25/04/2012,Agency Staff,Change - Group Director,Veredus,iPOS Invoice 45096,"18,000.00"
Government Equalities Office,Equality and Human Rights Commission,17/04/2012,Agency Staff,Change - People,Digby Morgan Consulting Ltd,iPOS Invoice 44923,"18,975.00"
Government Equalities Office,Equality and Human Rights Commission,11/04/2012,Alternative Formats,Operating - Scotland,AC2.com Productions Ltd.,iPOS Invoice 44906,"1,470.00"
Government Equalities Office,Equality and Human Rights Commission,25/04/2012,ATW - Agency/Staff Costs,Operating - Finance,Edenbrown,iPOS Invoice 44986,506.74
Government Equalities Office,Equality and Human Rights Commission,25/04/2012,ATW - Agency/Staff Costs,Operating - Finance,Edenbrown,iPOS Invoice 44988,506.74
Government Equalities Office,Equality and Human Rights Commission,25/04/2012,ATW - Agency/Staff Costs,Operating - Finance,Edenbrown,iPOS Invoice 44991,506.74
Government Equalities Office,Equality and Human Rights Commission,25/04/2012,ATW - Agency/Staff Costs,Operating - Finance,Edenbrown,iPOS Invoice 44992,506.74
Government Equalities Office,Equality and Human Rights Commission,25/04/2012,ATW - Agency/Staff Costs,Operating - Finance,Edenbrown,iPOS Invoice 44987,517.92
Government Equalities Office,Equality and Human Rights Commission,25/04/2012,ATW - Agency/Staff Costs,Operating - Finance,Edenbrown,iPOS Invoice 44983,521.64
Government Equalities Office,Equality and Human Rights Commission,25/04/2012,ATW - Agency/Staff Costs,Operating - Finance,Edenbrown,iPOS Invoice 44989,521.64
Government Equalities Office,Equality and Human Rights Commission,25/04/2012,ATW - Agency/Staff Costs,Operating - Finance,Edenbrown,iPOS Invoice 44985,536.54
Government Equalities Office,Equality and Human Rights Commission,25/04/2012,ATW - Agency/Staff Costs,Operating - Finance,Edenbrown,iPOS Invoice 44990,536.54
Government Equalities Office,Equality and Human Rights Commission,25/04/2012,ATW - Agency/Staff Costs,Operating - Finance,Linda Taylor Associates,iPOS Invoice 44980,552.96
Government Equalities Office,Equality and Human Rights Commission,25/04/2012,ATW - Non Staff Expenditure,Operating - Finance,Sheryll Holley,iPOS Invoice 45043,583.64
Government Equalities Office,Equality and Human Rights Commission,25/04/2012,ATW - Non Staff Expenditure,Operating - Finance,L Harrison,iPOS Invoice 45039,638.41
Government Equalities Office,Equality and Human Rights Commission,25/04/2012,ATW - Non Staff Expenditure,Operating - Finance,L Harrison,iPOS Invoice 45038,710.1
Government Equalities Office,Equality and Human Rights Commission,25/04/2012,ATW - Non Staff Expenditure,Operating - Finance,Gillian Croft,iPOS Invoice 45045,900
Government Equalities Office,Equality and Human Rights Commission,25/04/2012,Barristers Fees,General Counsel - Casework,Robin Allen QC,iPOS Invoice 45091,600
Government Equalities Office,Equality and Human Rights Commission,11/04/2012,Barristers Fees,General Counsel - Casework,Ms Sarah Fraser Butlin,iPOS Invoice 44849,720
Government Equalities Office,Equality and Human Rights Commission,11/04/2012,Barristers Fees,General Counsel - Enforcement,Helen Mountfield,iPOS Invoice 44862,"2,946.00"
Government Equalities Office,Equality and Human Rights Commission,25/04/2012,Barristers Fees,General Counsel - Enforcement,Declan O'Dempsey,iPOS Invoice 45095,"6,498.00"
Government Equalities Office,Equality and Human Rights Commission,17/04/2012,Barristers Fees,General Counsel - Casework,Robin Allen QC,iPOS Invoice 44848,"7,200.00"
Government Equalities Office,Equality and Human Rights Commission,11/04/2012,Barristers Fees,General Counsel - Enforcement,Helen Mountfield,iPOS Invoice 44861,"8,682.00"
Government Equalities Office,Equality and Human Rights Commission,11/04/2012,Barristers Fees,General Counsel - Casework,Declan O'Dempsey,iPOS Invoice 44881,"8,883.00"
Government Equalities Office,Equality and Human Rights Commission,11/04/2012,Barristers Fees,General Counsel - Casework,Robin Allen QC,iPOS Invoice 44880,"10,207.50"
Government Equalities Office,Equality and Human Rights Commission,25/04/2012,Books,Operating - Corporate Governance,Hammicks Legal Bookshops,iPOS Invoice 45030,"1,550.75"
Government Equalities Office,Equality and Human Rights Commission,25/04/2012,BT Non Managed Services,Change - IT,BT Onebillplus,iPOS Invoice 45090,"1,971.74"
Government Equalities Office,Equality and Human Rights Commission,17/04/2012,Childcare Voucher Scheme,Change - People,Accor Services,iPOS Invoice 44951,"4,617.81"
Government Equalities Office,Equality and Human Rights Commission,25/04/2012,Cleaning Services,Change - Facilities Management,CK Cleaning Services (Midlands) LLP,iPOS Invoice 45066,576
Government Equalities Office,Equality and Human Rights Commission,17/04/2012,Cleaning Services,Operating - Wales,Keith Brooks,iPOS Invoice 44927,990
Government Equalities Office,Equality and Human Rights Commission,25/04/2012,Cleaning Services,Change - Facilities Management,Carroll Cleaning Company Ltd,iPOS Invoice 45080,"3,096.02"
Government Equalities Office,Equality and Human Rights Commission,11/04/2012,Conference Interpreters Expenses,Operating - Statutory Committee Disability,Sttrs Direct,iPOS Invoice 44905,"1,123.32"
Government Equalities Office,Equality and Human Rights Commission,17/04/2012,Conference Set Up/Equipment Costs,Commissioners Office,Audio & Interpretation Services Ltd,iPOS Invoice 44917,645.6
Government Equalities Office,Equality and Human Rights Commission,11/04/2012,Conference Set Up/Equipment Costs,Operating - Public Service,Link Exhibition Services,iPOS Invoice 44809,"1,062.00"
Government Equalities Office,Equality and Human Rights Commission,11/04/2012,Conference Speakers Fees,Operating - Statutory Committee Wales,The Bevan Foundation,iPOS Invoice 44816,"3,960.00"
Government Equalities Office,Equality and Human Rights Commission,11/04/2012,Disaster Recovery,Change - IT,IBM,iPOS Invoice 44845,720
Government Equalities Office,Equality and Human Rights Commission,25/04/2012,Electricity,Change - Facilities Management,BNP Paribas Real Estate,iPOS Invoice 45048,510.08
Government Equalities Office,Equality and Human Rights Commission,25/04/2012,Electricity,Change - Facilities Management,BNP Paribas Real Estate,iPOS Invoice 45046,554.65
Government Equalities Office,Equality and Human Rights Commission,25/04/2012,Electricity,Change - Facilities Management,Danmerc Property,iPOS Invoice 45079,"11,605.80"
Government Equalities Office,Equality and Human Rights Commission,11/04/2012,Events Attendees Costs,Operating - Wales,Lancaster Consulting HR Ltd,iPOS Invoice 44825,"7,975.98"
Government Equalities Office,Equality and Human Rights Commission,11/04/2012,Events Set Up/Equipment Costs,Operating - Human Rights & respect,The Council for Disabled Children,iPOS Invoice 44820,"11,767.00"
Government Equalities Office,Equality and Human Rights Commission,11/04/2012,Events Venue Costs,Operating - Statutory Committee Scotland,Deaf Connections,iPOS Invoice 44914,542.8
Government Equalities Office,Equality and Human Rights Commission,11/04/2012,Events Venue Costs,Operating - Statutory Committee Scotland,Sheryll Holley,iPOS Invoice 44882,579.32
Government Equalities Office,Equality and Human Rights Commission,30/04/2012,GPC,Operating - Finance,Lloyds GPC,20130149,"1,144.26"
Government Equalities Office,Equality and Human Rights Commission,25/04/2012,Grant Funding Programme,Operating - Grants Unit,Cambridge Ethnic Community Forum,20130114,"1,599.99"
Government Equalities Office,Equality and Human Rights Commission,12/04/2012,Grant Funding Programme,Operating - Grants Unit,"Friends, Families and Travellers",20130121,"4,158.00"
Government Equalities Office,Equality and Human Rights Commission,25/04/2012,Grant Funding Programme,Operating - Grants,Central Sussex CAB,Phase 1 10% Retention,"6,150.00"
Government Equalities Office,Equality and Human Rights Commission,20/04/2012,Grant Funding Programme,Operating - Grants,Nottingham Law Centre,20130124,"6,707.31"
Government Equalities Office,Equality and Human Rights Commission,20/04/2012,Grant Funding Programme,Operating - Grants,Denbighshire CAB,20130125,"6,936.33"
Government Equalities Office,Equality and Human Rights Commission,25/04/2012,Grant Funding Programme,Operating - Grants Unit,Bristol Next Link Domestic Abuse Services,20130126,"7,015.70"
Government Equalities Office,Equality and Human Rights Commission,25/04/2012,Grant Funding Programme,Operating - Grants Unit,Bonny Downs Community Association,20130127,"8,546.57"
Government Equalities Office,Equality and Human Rights Commission,20/04/2012,Grant Funding Programme,Operating - Grants,Denbighshire CAB,20130128,"8,758.04"
Government Equalities Office,Equality and Human Rights Commission,20/04/2012,Grant Funding Programme,Operating - Grants,Royal Courts of Jutice Advice Bureau,20130129,"10,000.00"
Government Equalities Office,Equality and Human Rights Commission,20/04/2012,Grant Funding Programme,Operating - Grants,Royal Courts of Jutice Advice Bureau,20130130,"10,000.00"
Government Equalities Office,Equality and Human Rights Commission,20/04/2012,Grant Funding Programme,Operating - Grants,Royal Courts of Jutice Advice Bureau,20130131,"10,000.00"
Government Equalities Office,Equality and Human Rights Commission,20/04/2012,Grant Funding Programme,Operating - Grants,Slough Race Equality Council,20130132,"10,425.00"
Government Equalities Office,Equality and Human Rights Commission,12/04/2012,Grant Funding Programme,Operating - Grants Unit,Family Matters,20130133,"10,715.52"
Government Equalities Office,Equality and Human Rights Commission,12/04/2012,Grant Funding Programme,Operating - Grants Unit,Families Need Fathers,20130134,"11,812.50"
Government Equalities Office,Equality and Human Rights Commission,25/04/2012,Grant Funding Programme,Operating - Grants Unit,Eclectic Productions UK Ltd.,20130135,"12,031.00"
Government Equalities Office,Equality and Human Rights Commission,20/04/2012,Grant Funding Programme,Operating - Grants,Royal Association for Deaf people (RAD),20130136,"12,750.00"
Government Equalities Office,Equality and Human Rights Commission,12/04/2012,Grant Funding Programme,Operating - Grants Unit,SPAN Study Centre,20130137,"12,919.45"
Government Equalities Office,Equality and Human Rights Commission,20/04/2012,Grant Funding Programme,Operating - Grants,Flintshire Citizens Advice Bureaux,20130138,"12,972.00"
Government Equalities Office,Equality and Human Rights Commission,12/04/2012,Grant Funding Programme,Operating - Grants Unit,The Brigstowe Project,20130139,"13,125.00"
Government Equalities Office,Equality and Human Rights Commission,20/04/2012,Grant Funding Programme,Operating - Grants,Northamptonshire REC,20130140,"13,750.00"
Government Equalities Office,Equality and Human Rights Commission,20/04/2012,Grant Funding Programme,Operating - Grants,Flintshire Citizens Advice Bureaux,20130141,"13,779.00"
Government Equalities Office,Equality and Human Rights Commission,25/04/2012,Grant Funding Programme,Operating - Grants Unit,Kick It Out,20130142,"14,786.32"
Government Equalities Office,Equality and Human Rights Commission,20/04/2012,Grant Funding Programme,Operating - Grants,Tameside REC,20130143,"15,018.82"
Government Equalities Office,Equality and Human Rights Commission,20/04/2012,Grant Funding Programme,Operating - Grants,Newcastle Law Centre,20130144,"15,425.00"
Government Equalities Office,Equality and Human Rights Commission,20/04/2012,Grant Funding Programme,Operating - Grants,Nottingham Law Centre,20130145,"15,750.00"
Government Equalities Office,Equality and Human Rights Commission,20/04/2012,Grant Funding Programme,Operating - Grants,Nottingham Law Centre,20130146,"15,750.00"
Government Equalities Office,Equality and Human Rights Commission,12/04/2012,Grant Funding Programme,Operating - Grants Unit,Stonewall Equality,20130147,"18,255.29"
Government Equalities Office,Equality and Human Rights Commission,25/04/2012,Grant Funding Programme,Operating - Grants,Press for Change: Trans Equality,20130148,"32,000.00"
Government Equalities Office,Equality and Human Rights Commission,11/04/2012,Health And Safety,Change - Facilities Management,Cardiff PAT Test,iPOS Invoice 44900,897.6
Government Equalities Office,Equality and Human Rights Commission,25/04/2012,IT Hardware Maintenance Contracts,Change - IT,VideoCentric Ltd,iPOS Invoice 44943,"12,102.00"
Government Equalities Office,Equality and Human Rights Commission,11/04/2012,IT Systems  Development,Operating - Scotland,Blueberry Marketing Solutions,iPOS Invoice 44835,"5,670.00"
Government Equalities Office,Equality and Human Rights Commission,11/04/2012,Learning And Development,Operating - Group Director,Community Resolve,iPOS Invoice 44771,500
Government Equalities Office,Equality and Human Rights Commission,11/04/2012,Learning And Development,Policy & Ptnrship - Stakeholder Relations,Government Knowledge training Limited,iPOS Invoice 44836,534
Government Equalities Office,Equality and Human Rights Commission,11/04/2012,Learning And Development,Policy & Ptnrship - External Affairs,Webcredible,iPOS Invoice 44875,534
Government Equalities Office,Equality and Human Rights Commission,25/04/2012,Learning And Development,Operating - Corporate Governance,Central Law Training,iPOS Invoice 45023,594
Government Equalities Office,Equality and Human Rights Commission,25/04/2012,Learning And Development,Change - People,Waterstones,iPOS Invoice 45088,599.48
Government Equalities Office,Equality and Human Rights Commission,17/04/2012,Learning And Development,Change - Group Director,Jud Stone,iPOS Invoice 44694,600
Government Equalities Office,Equality and Human Rights Commission,11/04/2012,Learning And Development,Operating - Wales,Hughes Business Services Ltd,iPOS Invoice 44838,640
Government Equalities Office,Equality and Human Rights Commission,25/04/2012,Learning And Development,Change - Group Director,PPMA,iPOS Invoice 44959,708
Government Equalities Office,Equality and Human Rights Commission,25/04/2012,Learning And Development,Operating - Group Director,Government Knowledge training Limited,iPOS Invoice 44958,"1,470.00"
Government Equalities Office,Equality and Human Rights Commission,11/04/2012,Learning And Development,General Counsel - Group Director,Selectif Ltd,iPOS Invoice 44885,"1,500.00"
Government Equalities Office,Equality and Human Rights Commission,25/04/2012,Learning And Development,Policy & Ptnrship - External Affairs,Emailvision (UK) Ltd,iPOS Invoice 44968,"1,620.00"
Government Equalities Office,Equality and Human Rights Commission,11/04/2012,Learning And Development,General Counsel - Group Director,The College Of Law,iPOS Invoice 44863,"1,788.00"
Government Equalities Office,Equality and Human Rights Commission,11/04/2012,Learning And Development,General Counsel - Group Director,Government Knowledge training Limited,iPOS Invoice 44853,"1,800.00"
Government Equalities Office,Equality and Human Rights Commission,17/04/2012,Learning And Development,Policy & Ptnrship - Helpline,Unique Skills People,iPOS Invoice 44920,"3,500.00"
Government Equalities Office,Equality and Human Rights Commission,11/04/2012,Learning And Development,General Counsel - Group Director,Kaplan Altior,iPOS Invoice 44868,"9,330.00"
Government Equalities Office,Equality and Human Rights Commission,11/04/2012,Legal Services,Operating - Public Service,Beth Holbrook,iPOS Invoice 44843,900
Government Equalities Office,Equality and Human Rights Commission,25/04/2012,Library Costs,Operating - Research & Information,Newspaper Licensing Agency Limited,iPOS Invoice 45015,"8,294.22"
Government Equalities Office,Equality and Human Rights Commission,16/04/2012,M Prosser,Operating - Finance,M Prosser,20130150,"3,323.63"
Government Equalities Office,Equality and Human Rights Commission,11/04/2012,Marketing,Policy & Ptnrship - External Affairs,Emailvision (UK) Ltd,iPOS Invoice 44909,953.63
Government Equalities Office,Equality and Human Rights Commission,11/04/2012,Meals/Drinks (receipted),Operating - Policy and Ops - Private,Anne Madden,EXPMAR2012 (19.01.12),599.4
Government Equalities Office,Equality and Human Rights Commission,17/04/2012,Media Monitoring,Policy & Ptnrship - External Affairs,Press Data Bureau,iPOS Invoice 44941,"3,313.98"
Government Equalities Office,Equality and Human Rights Commission,25/04/2012,MFD Rent Charges,Change - IT,Danwood Contract Rentals,iPOS Invoice 45029,"6,585.60"
Government Equalities Office,Equality and Human Rights Commission,17/04/2012,Office Reorganisation,Change - Facilities Management,Harrow Green Limited,iPOS Invoice 44685,"1,293.60"
Government Equalities Office,Equality and Human Rights Commission,17/04/2012,Parliamentary Monitoring,Policy & Ptnrship - Stakeholder Relations,Dod's Parliamentry Communications,iPOS Invoice 44921,"8,400.00"
Government Equalities Office,Equality and Human Rights Commission,11/04/2012,Payroll Processing Costs,Operating - Finance,Ceridian Centrefile Ltd,iPOS Invoice 44850,"2,323.62"
Government Equalities Office,Equality and Human Rights Commission,11/04/2012,Photography,Operating - Scotland,Mallard Productions,iPOS Invoice 44817,900
Government Equalities Office,Equality and Human Rights Commission,25/04/2012,Premises prepayments,Change - Facilities Management,Cardiff County Council,iPOS Invoice 45092,839.57
Government Equalities Office,Equality and Human Rights Commission,25/04/2012,Premises prepayments,Change - Facilities Management,DWP,iPOS Invoice 44963,"8,061.27"
Government Equalities Office,Equality and Human Rights Commission,25/04/2012,Premises prepayments,Change - Facilities Management,Danmerc Property,iPOS Invoice 45078,"28,009.20"
Government Equalities Office,Equality and Human Rights Commission,11/04/2012,Premises prepayments,Change - Facilities Management,KWB Property Management Ltd,iPOS Invoice 44846,"28,830.00"
Government Equalities Office,Equality and Human Rights Commission,25/04/2012,Premises prepayments,Change - Facilities Management,Danmerc Property,iPOS Invoice 45077,"39,790.20"
Government Equalities Office,Equality and Human Rights Commission,25/04/2012,Premises prepayments,Change - Facilities Management,DWP,iPOS Invoice 44964,"59,482.29"
Government Equalities Office,Equality and Human Rights Commission,25/04/2012,Premises prepayments,Change - Facilities Management,Glasgow City Council,iPOS Invoice 45084,"94,806.00"
Government Equalities Office,Equality and Human Rights Commission,11/04/2012,Press Relations,Policy & Ptnrship - External Affairs,Angela Coles,iPOS Invoice 44901,780
Government Equalities Office,Equality and Human Rights Commission,11/04/2012,Professional Advice,Operating - Scotland,Shirley Otto,iPOS Invoice 44823,"1,950.00"
Government Equalities Office,Equality and Human Rights Commission,25/04/2012,Property Insurance,Change - Facilities Management,CBRE Ltd,iPOS Invoice 45017,"1,398.06"
Government Equalities Office,Equality and Human Rights Commission,25/04/2012,Property Insurance,Change - Facilities Management,CBRE Ltd,iPOS Invoice 45016,"1,441.61"
Government Equalities Office,Equality and Human Rights Commission,25/04/2012,Property Insurance,Change - Facilities Management,CBRE Ltd,iPOS Invoice 45019,"2,028.66"
Government Equalities Office,Equality and Human Rights Commission,25/04/2012,Property Insurance,Change - Facilities Management,CBRE Ltd,iPOS Invoice 45018,"2,095.49"
Government Equalities Office,Equality and Human Rights Commission,11/04/2012,Publications Corporate,Operating - Policy and Ops - Private,Kids Connections Limited,iPOS Invoice 44787,"22,224.00"
Government Equalities Office,Equality and Human Rights Commission,11/04/2012,Publications Design,Operating - Policy and Ops - Private,Agnes Fletcher,iPOS Invoice 44814,"2,700.00"
Government Equalities Office,Equality and Human Rights Commission,17/04/2012,Publications Editing/Proof Reading,Change - Group Director,The Stationery Office,iPOS Invoice 44939,"1,333.12"
Government Equalities Office,Equality and Human Rights Commission,11/04/2012,Publications Editing/Proof Reading,Operating - Policy and Ops - Private,Textmill,iPOS Invoice 44899,"1,500.00"
Government Equalities Office,Equality and Human Rights Commission,11/04/2012,Publications Editing/Proof Reading,Operating - Public Service,Morgan Cole,iPOS Invoice 44818,"17,739.20"
Government Equalities Office,Equality and Human Rights Commission,17/04/2012,Publications Photography & Video,Operating - Wales,Cracking Productions,iPOS Invoice 44946,"1,448.40"
Government Equalities Office,Equality and Human Rights Commission,11/04/2012,Publications Photography & Video,Operating - Scotland,Glasgow Media Access Centre (GMAC),iPOS Invoice 44891,"3,500.00"
Government Equalities Office,Equality and Human Rights Commission,11/04/2012,Publications Printing,Operating - Scotland,Marianne Cunningham (MAZE),iPOS Invoice 44890,700
Government Equalities Office,Equality and Human Rights Commission,11/04/2012,Publications Printing,Operating - Wales,Dischromatics Ltd,iPOS Invoice 44902,"1,188.00"
Government Equalities Office,Equality and Human Rights Commission,17/04/2012,Publications Storage Costs,Policy & Ptnrship - External Affairs,Promotional Logistics Ltd,iPOS Invoice 44919,"2,265.60"
Government Equalities Office,Equality and Human Rights Commission,11/04/2012,Publications Translation,Operating - Foresight,The Big Word,iPOS Invoice 44840,681.6
Government Equalities Office,Equality and Human Rights Commission,17/04/2012,Publications Translation,Operating - Statutory Committee Scotland,Adept Transcription,iPOS Invoice 44945,993.6
Government Equalities Office,Equality and Human Rights Commission,23/04/2012,Publications Translation,Operating - Human Rights & respect,Evelyne Tatu,iPOS Invoice 45013,"1,891.70"
Government Equalities Office,Equality and Human Rights Commission,11/04/2012,Publications Translation,Operating - Human Rights & respect,The Big Word,iPOS Invoice 44864,"1,930.46"
Government Equalities Office,Equality and Human Rights Commission,11/04/2012,Rail Travel,Operating - Finance,Veredus,iPOS Invoice 44888,"1,559.40"
Government Equalities Office,Equality and Human Rights Commission,17/04/2012,Records Storage Costs,Operating - Information Management,Iron Mountain (UK) Ltd,iPOS Invoice 44948,"2,382.38"
Government Equalities Office,Equality and Human Rights Commission,11/04/2012,Recruitment Assessments,Central Project Budget,Penna,iPOS Invoice 44873,"2,400.00"
Government Equalities Office,Equality and Human Rights Commission,25/04/2012,Rent,Change - Facilities Management,Mwb Business Exchange Centres,iPOS Invoice 45020,"2,076.00"
Government Equalities Office,Equality and Human Rights Commission,11/04/2012,Research,Operating - Statutory Committee Wales,Swansea University,iPOS Invoice 44894,"3,780.00"
Government Equalities Office,Equality and Human Rights Commission,11/04/2012,Research,Operating - Human Rights & respect,Independent Age,iPOS Invoice 44867,"1,500.00"
Government Equalities Office,Equality and Human Rights Commission,11/04/2012,Research,Operating - Human Rights & respect,Ipsos Mori,iPOS Invoice 44796,"2,760.00"
Government Equalities Office,Equality and Human Rights Commission,11/04/2012,Research,Operating - Human Rights & respect,Ipsos Mori,iPOS Invoice 44795,"2,940.00"
Government Equalities Office,Equality and Human Rights Commission,11/04/2012,Research,Operating - Human Rights & respect,Independent Age,iPOS Invoice 44866,"4,250.00"
Government Equalities Office,Equality and Human Rights Commission,17/04/2012,Research,General Counsel - Group Director,British Institute Of Human Rights,iPOS Invoice 44938,"6,600.00"
Government Equalities Office,Equality and Human Rights Commission,11/04/2012,Research,General Counsel - Group Director,London Metropolitan University,iPOS Invoice 44855,"8,923.50"
Government Equalities Office,Equality and Human Rights Commission,17/04/2012,Research,General Counsel - Group Director,London Metropolitan University,iPOS Invoice 44929,"8,923.50"
Government Equalities Office,Equality and Human Rights Commission,11/04/2012,Research,Operating - Human Rights & respect,Britain Thinks,iPOS Invoice 44859,"9,900.00"
Government Equalities Office,Equality and Human Rights Commission,17/04/2012,Research,Operating - Human Rights & respect,Britain Thinks,iPOS Invoice 44918,"10,099.02"
Government Equalities Office,Equality and Human Rights Commission,11/04/2012,Research,General Counsel - Group Director,British Institute Of Human Rights,iPOS Invoice 44857,"12,400.00"
Government Equalities Office,Equality and Human Rights Commission,25/04/2012,Research,Operating - Public Service,AP Benson Limited,iPOS Invoice 44981,"4,884.00"
Government Equalities Office,Equality and Human Rights Commission,11/04/2012,Research,Operating - Statutory Committee Scotland,University of Edinburgh,iPOS Invoice 44822,"4,908.00"
Government Equalities Office,Equality and Human Rights Commission,11/04/2012,Research,Operating - Scotland,ODS Services Ltd,iPOS Invoice 44831,"5,832.00"
Government Equalities Office,Equality and Human Rights Commission,11/04/2012,Research,Operating - Foresight,Frontline Consultants Ltd,iPOS Invoice 44851,"8,400.00"
Government Equalities Office,Equality and Human Rights Commission,11/04/2012,Research,Operating - Foresight,Frontline Consultants Ltd,iPOS Invoice 44852,"8,400.00"
Government Equalities Office,Equality and Human Rights Commission,11/04/2012,Research,Operating - Research & Information,IFF Research,iPOS Invoice 44904,"12,000.00"
Government Equalities Office,Equality and Human Rights Commission,17/04/2012,Research,Operating - Human Rights & respect,University of Bristol,iPOS Invoice 44931,"12,869.60"
Government Equalities Office,Equality and Human Rights Commission,11/04/2012,Research,Operating - Research & Information,"Cambridge Policy Consultants
",iPOS Invoice 44830,"19,590.00"
Government Equalities Office,Equality and Human Rights Commission,11/04/2012,Researchers Fees,Operating - Scotland,EKOS Limited,iPOS Invoice 44810,"5,700.00"
Government Equalities Office,Equality and Human Rights Commission,25/04/2012,Researchers Fees,Operating - Human Rights & respect,Equality and Diversity Forum,iPOS Invoice 44960,"7,480.00"
Government Equalities Office,Equality and Human Rights Commission,11/04/2012,Researchers Fees,Operating - Statutory Committee Wales,Old Bell 3,iPOS Invoice 44811,"7,980.00"
Government Equalities Office,Equality and Human Rights Commission,11/04/2012,Researchers Fees,Operating - Public Service,Equality and Diversity Forum,iPOS Invoice 44907,"8,000.00"
Government Equalities Office,Equality and Human Rights Commission,11/04/2012,Researchers Fees,Operating - Statutory Committee Wales,Swansea University,iPOS Invoice 44872,"11,988.00"
Government Equalities Office,Equality and Human Rights Commission,11/04/2012,Researchers Fees,Operating - Human Rights & respect,Equality and Diversity Forum,iPOS Invoice 44854,"20,000.00"
Government Equalities Office,Equality and Human Rights Commission,25/04/2012,Service Charge,Change - Facilities Management,BNP Paribas Real Estate,iPOS Invoice 45047,"11,819.24"
Government Equalities Office,Equality and Human Rights Commission,17/04/2012,Settlement Costs,General Counsel - Casework,Capsticks Solicitors LLP,iPOS Invoice 44916,"17,000.00"
Government Equalities Office,Equality and Human Rights Commission,16/04/2012,Settlement Costs,General Counsel - Casework,DLA,iPOS Invoice 44949,"29,000.00"
Government Equalities Office,Equality and Human Rights Commission,17/04/2012,Settlement Costs,General Counsel - Casework,DLA,iPOS Invoice 44950,"29,000.00"
Government Equalities Office,Equality and Human Rights Commission,25/04/2012,Solicitors Fees,General Counsel - Casework,Russell Jones & Walker,iPOS Invoice 44971,"1,075.20"
Government Equalities Office,Equality and Human Rights Commission,25/04/2012,Solicitors Fees,General Counsel - Casework,Russell Jones & Walker,iPOS Invoice 44972,"2,862.00"
Government Equalities Office,Equality and Human Rights Commission,25/04/2012,Solicitors Fees,General Counsel - Casework,Russell Jones & Walker,iPOS Invoice 44970,"4,800.00"
Government Equalities Office,Equality and Human Rights Commission,11/04/2012,Solicitors Fees,General Counsel - Casework,Pierce Glynn Solicitors,iPOS Invoice 44773,"5,788.65"
Government Equalities Office,Equality and Human Rights Commission,17/04/2012,Sponsored Study,Commissioners Office,Hemsley Fraser Group Ltd,iPOS Invoice 44924,555.46
Government Equalities Office,Equality and Human Rights Commission,11/04/2012,Surveys,Policy & Ptnrship - Business Planning,SCC Ltd,iPOS Invoice 44844,"2,400.00"
Government Equalities Office,Equality and Human Rights Commission,11/04/2012,Travel,Operating - Finance,Carlson Wagonlit Travel,20130117,"2,998.09"
Government Equalities Office,Equality and Human Rights Commission,17/04/2012,Travel,Operating - Finance,Carlson Wagonlit Travel,20130120,"3,948.92"
Government Equalities Office,Equality and Human Rights Commission,25/04/2012,Travel,Operating - Finance,Carlson Wagonlit Travel,20130122,"4,236.91"
Government Equalities Office,Equality and Human Rights Commission,11/04/2012,Travel,Operating - Finance,Carlson Wagonlit Travel,20130123,"4,241.76"
Government Equalities Office,Equality and Human Rights Commission,23/04/2012,VAT,Operating - Finance,HMRC,20130151,"4,009.50"
Government Equalities Office,Equality and Human Rights Commission,17/04/2012,Website Development Costs,Operating - Scotland,Precedent Communications,iPOS Invoice 44936,"2,790.00"
Government Equalities Office,Equality and Human Rights Commission,11/04/2012,Website Development Costs,Operating - Policy and Ops - Private,Sue Hastings,iPOS Invoice 44826,"5,000.00"
Government Equalities Office,Equality and Human Rights Commission,17/04/2012,Website Hosting Costs,Policy & Ptnrship - External Affairs,Precedent Communications,iPOS Invoice 44940,"8,676.00"
Government Equalities Office,Equality and Human Rights Commission,17/04/2012,Website Hosting Costs,Policy & Ptnrship - External Affairs,Precedent Communications,iPOS Invoice 44806,"12,936.00"
